{"text_format":"1","workbook":"xlsx","n_sheets":6,"sheets":["Prompt","C100","C200","C300","C400","Enviar"],"not_rendered":{"charts":0,"images":6,"macros":1,"external_links":0,"defined_names":1,"comments":0,"pivot_tables":0},"unopened":[],"bounds":{"document_bytes":16777216,"sheet_cells":100000,"rows_first":2000,"rows_last":500,"rows_between":2000,"halvings":0,"cell_chars":16384,"cell_head_chars":4096},"cells_cut":0,"cells_raw":0,"read":"whole","date_system":"1900"}

{"sheet":"Prompt","index":0,"n_rows":79,"n_cols":4,"rows_kept":79,"cut":false,"hidden":true,"merged":[[1,3,2,6],[4,1,6,8],[43,1,44,8],[78,1,79,8],[9,1,10,8]]}
[]
[null,null,null,"¡ATENCIÓN!"]
[]
[]
[null,"Para hacer uso de las funcionalidades de esta Cédula Electrónica debe habilitar macros"]
[]
[]
[]
[]
[null,"Si utiliza Excel 2013 siga el siguiente procedimiento:"]
[]
[]
[]
[]
[]
[]
[]
[]
[]
[]
[]
[]
[]
[]
[]
[]
[]
[]
[]
[]
[]
[]
[]
[]
[]
[]
[]
[]
[]
[]
[]
[]
[]
[null,"Si utiliza Excel 2007 siga el siguiente procedimiento:"]
[]
[]
[]
[]
[]
[]
[]
[]
[]
[]
[]
[]
[]
[]
[]
[]
[]
[]
[]
[]
[]
[]
[]
[]
[]
[]
[]
[]
[]
[]
[]
[]
[]
[]
[null,"Si utiliza Excel 2000, 2002, 2003 siga el siguiente procedimiento:"]

{"sheet":"C100","index":1,"n_rows":232,"n_cols":22,"rows_kept":232,"cut":false,"hidden":false,"merged":[[183,7,183,10],[177,18,177,21],[204,4,204,8],[204,15,204,19],[147,4,147,5],[195,3,196,7],[195,9,195,10],[143,18,143,19],[144,18,144,19],[145,18,145,19],[146,18,146,19],[147,18,147,19],[143,7,143,8],[144,7,144,8],[145,7,145,8],[146,7,146,8],[147,7,147,8],[16,5,16,20],[18,16,18,20],[1,4,1,19],[2,4,2,19],[3,4,3,19],[1,20,1,21],[2,20,3,21],[11,1,11,22],[14,5,14,7],[14,19,14,20],[18,5,18,13],[29,1,29,22],[125,18,125,19],[123,17,124,19],[123,20,124,21],[41,16,41,20],[85,18,85,21],[99,16,99,20],[100,16,100,20],[115,16,115,21],[139,6,140,8],[139,9,140,10],[142,7,142,8],[140,2,141,5],[141,9,142,10],[140,17,141,19],[140,20,141,21],[141,13,141,16],[142,18,142,19],[124,13,124,16],[130,15,130,16],[126,18,126,19],[127,18,127,19],[128,18,128,19],[129,18,129,19],[130,18,130,19],[214,9,215,10],[216,17,220,21],[220,13,220,14],[231,13,231,14],[223,13,223,14],[224,13,224,14],[225,13,225,14],[226,13,226,14],[227,13,227,14],[134,5,134,9],[223,17,227,21],[228,13,228,14],[229,13,229,14],[230,13,230,14],[221,13,221,14],[222,13,222,14],[214,11,215,12],[214,13,215,15],[217,13,217,14],[216,13,216,14],[218,13,218,14],[219,13,219,14],[214,5,216,8],[195,20,195,21],[195,14,196,18]]}
[]
[null,null,null,null,"CENSO EDUCATIVO 2025",null,null,null,null,null,null,null,null,null,null,null,null,null,null,null,"CÉDULA"]
[null,null,null,null,"EDUCACIÓN BÁSICA ESPECIAL",null,null,null,null,null,null,null,null,null,null,null,null,null,null,null,"8ACP"]
[null,null,null,null,"CREBE / PANETS"]
[null,"Versión :",null,"GA - 1.0"]
[null,"INSTRUCCIONES DEL FORMATO ELECTRÓNICO "]
[]
[]
[]
[]
[]
[null,"IDENTIFICACIÓN DEL SERVICIO EDUCATIVO"]
[]
[]
[null,"1. CÓDIGO MODULAR :",null,null,null,null,null,null,null,null,null,null,null,null,null,null,null,"2. CÓDIGO DE LOCAL EDUCATIVO :"]
[]
[null,"3. NOMBRE DEL SERVICIO :",null,null,null,""]
[]
[null,"4. DISTRITO :",null,null,null,null,null,null,null,null,null,null,null,null,null,"LOCALIDAD :"]
[]
[]
[]
[null,"5. EL SERVICIO EDUCATIVO ES",null,null,null,null,null,null,"","CREBE",null,null,null,null,"PANETS"]
[]
[]
[]
[null,"GESTIÓN DE LA INSTITUCIÓN EDUCATIVA :",null,null,null,null,null,null,null," 1 - Pública de gestión directa",null,null,null,""," 2 - Pública de gestión privada",null,null,null,""," 3 - Privada"]
[]
[]
[null,"100. CARACTERÍSTICAS DEL SERVICIO EDUCATIVO"]
[]
[null,null,"A. GESTIÓN"]
[null,null,"Responder solo si el servicio educativo es CREBE",null,null,null,null,null,null,null,null,null,null,"Responder solo si el servicio educativo es CREBE"]
[]
[null,"101. ¿CUÁL ES EL ÁMBITO DE ATENCIÓN DEL SERVICIO EDUCATIVO?",null,null,null,null,null,null,null,null,null,null,"103. ¿CUÁL ES LA CONDICIÓN DE TENENCIA DEL LOCAL QUE OCUPA EL CREBE?"]
[null,null,null,null,null,null,null,null,null,null,null,null,null,"Marque con una “X” una opción"]
[null,null,null,"","Regional",null,null,"","Local"]
[null,null,null,null,null,null,null,null,null,null,null,null,null,null,"","Propio"]
[null,null,null,null,null,null,null,null,null,null,null,null,null,null,"","Alquilado"]
[null,"102. ¿EL SERVICIO EDUCATIVO CUENTA CON DOCUMENTO DE GESTIÓN?",null,null,null,null,null,null,null,null,null,null,null,null,"","Prestado o compartido"]
[null,null,null,null,null,null,null,null,null,null,null,null,null,null,"","Cedido en uso"]
[null,null,"Sí  ","",null,null,"No  ","",null,null,null,null,null,null,"","Otro",""]
[]
[null,null,null,null,"¿Qué documentos?",null,null,null,null,null,null,null,null,"Responder solo si el servicio educativo es PANETS"]
[null,null,null,null,"Marque con una “X”, una o más opciones"]
[]
[null,null,null,null,null,"","PAT",null,null,null,null,null,"104. ¿EL PROGRAMA EDUCATIVO CUENTA CON DOCUMENTO DE GESTIÓN?"]
[null,null,null,null,null,"","RI"]
[null,null,null,null,null,null,null,null,null,null,null,null,null,"Sí  ","",null,null,"No  ",""]
[]
[]
[null,null,"B. ACOMPAÑAMIENTO Y SOPORTE"]
[null,null,"Solo si el servicio educativo es CREBE, responder preguntas 105, 106, 107 y 108"]
[null,"105. DESDE QUE INICIÓ EL AÑO ESCOLAR, ¿EL SERVICIO EDUCATIVO HA RECIBIDO",null,null,null,null,null,null,null,null,null,null,"107. EL DIRECTIVO O PERSONAL A CARGO DEL SERVICIO EDUCATIVO , ¿HA REALIZADO"]
[null,null,"ASISTENCIA TÉCNICA, VIRTUAL O PRESENCIAL, POR PARTE DEL ESPECIALISTA",null,null,null,null,null,null,null,null,null,null,"EL MONITOREO A LA PRÁCTICA PEDAGÓGICA DEL PERSONAL DEL SERVICIO?"]
[null,null,"A CARGO DEL MINEDU, DRE/GRE O UGEL?"]
[null,null,null,null,null,null,null,null,null,null,null,null,null,"Sí  ","",null,null,"No  ",""]
[null,null,"Sí  ","",null,null,"No  ",""]
[null,null,null,null,null,null,null,null,null,null,null,null,null,null,null,"¿El monitoreo re realizó sobre:?"]
[null,null,null,null,"¿De qué entidad lo recibió?",null,null,null,null,null,null,null,null,null,null,"Marque con una “X”, una o más opciones"]
[null,null,null,null,"Marque con una “X”, una o más opciones"]
[null,null,null,null,null,null,null,null,null,null,null,null,null,null,null,null,"","Línea de información e investigación"]
[null,null,null,null,null,"","Del Ministerio de Educación",null,null,null,null,null,null,null,null,null,"","Línea de capacitación"]
[null,null,null,null,null,"","De la DRE/GRE",null,null,null,null,null,null,null,null,null,"","Línea de sensibilización y concienciación"]
[null,null,null,null,null,"","De la UGEL",null,null,null,null,null,null,null,null,null,"","Línea de producción y/o adaptación de materiales"]
[]
[null,"106. EL DIRECTIVO O PERSONAL A CARGO DEL SERVICIO EDUCATIVO, ¿HA",null,null,null,null,null,null,null,null,null,null,"108. SOBRE LA BASE DE SUS FUNCIONES COMO SERVICIO EDUCATIVO, ¿SE HAN"]
[null,null,"RECIBIDO ALGÚN TIPO DE ACOMPAÑAMIENTO O MONITOREO POR ",null,null,null,null,null,null,null,null,null,null,"DESARROLLADO ACTIVIDADES CON FAMILIAS Y LA COMUNIDAD?"]
[null,null,"PARTE DEL ESPECIALISTA A CARGO DEL MINEDU, DRE/GRE O UGEL?"]
[]
[null,null,"Sí  ","",null,null,"No  ","",null,null,null,null,null,"Sí  ","",null,null,"No  ",""]
[]
[null,null,null,null,"¿De qué entidad lo recibió?",null,null,null,null,null,null,null,null,null,null,"¿Cuenta con aliados para el desarrollo de estas actividades?"]
[null,null,null,null,"Marque con una “X”, una o más opciones"]
[null,null,null,null,null,null,null,null,null,null,null,null,null,null,null,"Sí  ","",null,"No  ",""]
[null,null,null,null,null,"","Del Ministerio de Educación"]
[null,null,null,null,null,"","De la DRE/GRE"]
[null,null,null,null,null,"","De la UGEL",null,null,null,null,null,null,null,null,null,"¿Cuál o cuales son esos aliados?"]
[null,null,null,null,null,null,null,null,null,null,null,null,null,null,null,null,"Marque con una “X”, una o más opciones"]
[]
[null,null,null,null,null,null,null,null,null,null,null,null,null,null,null,null,"","CONADIS"]
[null,null,null,null,null,null,null,null,null,null,null,null,null,null,null,null,"","OMAPED"]
[null,null,null,null,null,null,null,null,null,null,null,null,null,null,null,null,"","Otros servicios de EBE"]
[null,null,null,null,null,null,null,null,null,null,null,null,null,null,null,null,"","Instituciones estatales"]
[null,null,null,null,null,null,null,null,null,null,null,null,null,null,null,null,"","Instituciones privadas"]
[null,null,null,null,null,null,null,null,null,null,null,null,null,null,null,null,"","Otro",""]
[]
[null,null,"Solo si el servicio educativo es PANETS, responder preguntas 109, 110"]
[null,"109. DESDE EL INICIO DEL AÑO LECTIVO HASTA LA FECHA DE LA APLICACIÓN DEL",null,null,null,null,null,null,null,null,null,null,"110. DURANTE EL AÑO 2024 Y HASTA LA FECHA DE APLICACIÓN DEL CENSO"]
[null,null,"CENSO EDUCATIVO 2025, ESTE SERVICIO/NIVEL EDUCATIVO, ¿HA RECIBIDO",null,null,null,null,null,null,null,null,null,null,"EDUCATIVO 2025, EL SERVICIO/NIVEL EDUCATIVO, ¿HA RECIBIDO ALGÚN TIPO"]
[null,null,"ASISTENCIA TÉCNICA PRESENCIAL O VIRTUAL DEL ESPECIALISTA PEDAGÓGICO",null,null,null,null,null,null,null,null,null,null,"DE ACOMPAÑAMIENTO DIRIGIDO AL DIRECTIVO?"]
[null,null,"RESPONSABLE O ENCARGADO DE EBE DE LA UGEL?"]
[null,null,null,null,null,null,null,null,null,null,null,null,null,"Sí",null,null,null," No  "]
[]
[null,null,"Sí  ","",null,null,"No  ","",null,null,null,null,null,null,"","¿Que Institución le brindó el acompañamiento?",null,null,""]
[null,null,null,null,null,null,null,null,null,"",null,null,null,null,null,"Marque con una “X” una o más opciones"]
[null,null,null,null,null,null,null,null,null,""]
[null,null,null,null,null,null,null,null,null,null,null,null,null,null,null,"DRE/GRE"]
[null,null,null,"",null,null,null,null,null,null,null,null,null,null,null,"UGEL"]
[null,null,null,null,null,null,null,null,null,null,null,null,null,null,null,"MINEDU",""]
[null,null,null,null,null,null,null,null,null,null,null,null,null,null,null,"OTROS",""]
[null,null,null,null,null,null,null,null,null,null,null,null,null,null,null,null,""]
[null,null,"C. ARTICULACIÓN CON LA EDUCACIÓN COMUNITARIA",null,null,null,null,null,null,null,null,null,null,null,null,null,""]
[null," 111. EN  EL  AÑO  2024, ¿SE  HAN  PUESTO  A  DISPOSICIÓN  LAS  INSTALACIONES  DE  ESTE ",null,null,null,null,null,null,null,null,null,null,null,null,"¿Qué temas o contenidos se han abordado en las actividades de educación comunitaria"]
[null,null,"SERVICIO/NIVEL EDUCATIVO  PARA  EL  DESARROLLO  DE  ACTIVIDADES DE EDUCACIÓN",null,null,null,null,null,null,null,null,null,null,null,"realizadas en las instalaciones de su institución educativa?"]
[null,null,"COMUNITARIA?",null,null,null,null,null,null,null,"",null,null,null,"Marque con una \"X\", una o más opciones"]
[null,null,null,null,null,null,null,null,null,null,null,null,null,null,null,null,null,null,""]
[null,null,null,null,null,null,null,null,null,null,"",null,null,null,null,"Ciudadanía y convivencia"]
[null,null,null,null,null,null,"Sí",null,null,null,null,null,null,null,null,"Pueblos indígenas, diversidad cultural y arte"]
[null,null,null,null,null,null,null,null,null,null,null,null,null,null,null,"Gestión pública y gobernabilidad"]
[null,null,null,null,null,null,null,null,null,null,null,null,"|",null,null,"Generación de conocimientos y tecnología"]
[null,null,null,null,null,null,null,null,null,null,null,null,null,null,null,"Desarrollo de capacidades y liderazgo"]
[null,null,null,null,null,"","No",null,null,null,null,null,null,null,null,"Trabajo y producción"]
[null,null,null,null,null,"",null,null,null,null,null,null,null,null,null,"Ambiente y territorio"]
[null,null,null,null,null,"",null,null,null,null,null,null,null,null,null,"Salud, seguridad alimentaria y deporte"]
[null,null,null,null,null,"",null,null,null,null,null,null,null,null,null,"Otros",""]
[]
[]
[null,null,"D. LÍNEA DE CAPACITACIÓN"]
[null,null,"Solo si el servicio educativo es CREBE, responder preguntas 112, 113, 114, 115 y 116"]
[null,"112. ¿HA REALIZADO ACCIONES REFERENTE A LA LÍNEA DE CAPACITACIÓN?",null,null,null,null,null,null,null,null,null,null,"115. ATENCIÓN A DOCENTES Y PROFESIONALES NO DOCENTES, POR SEXO Y POR"]
[null,null,null,null,null,null,null,null,null,null,null,null,null,"TIPO DE ACCIÓN FORMATIVA REALIZADA POR EL CREBE?"]
[null,null,"Sí  ","",null,null,"No  ","",null,"Pase a la pregunta 122"]
[null,null,null,null,null,null,null,null,null,null,null,null,null,null,null,null,null,"DOCENTES",null,null,"Profesionales\nNo Docentes"]
[null,"113. ¿CUÁLES FUERON LAS TEMÁTICAS DE LAS ACCIONES DE CAPACITACIÓN",null,null,null,null,null,null,null,null,null,null,null,"Acciones de Capacitación"]
[null,null,"REALZADAS POR EL CREBE?",null,null,null,null,null,null,null,null,null,null,null,null,null,null,"H","M",null,"H","M"]
[null,null,"Marque con una “X”, una o más opciones",null,null,null,null,null,null,null,null,null,null,1,"Conferencia",null,null,"","",null,"",""]
[null,null,null,null,null,null,null,null,null,null,null,null,null,2,"Taller",null,null,"","",null,"",""]
[null,null,null,"","Discapacidad auditiva",null,null,null,null,null,null,null,null,3,"Seminario",null,null,"","",null,"",""]
[null,null,null,"","Discapacidad intelectual",null,null,null,null,null,null,null,null,4,"Capacitación",null,null,"","",null,"",""]
[null,null,null,"","Discapacidad motriz",null,null,null,null,null,null,null,null,5,"Otro","",null,"","",null,"",""]
[null,null,null,"","Discapacidad del transtorno del espectro autista"]
[null,null,null,"","Discapacidad sordoceguera",null,null,null,null,null,null,null,null,"Nota:","La información debe coincidir de acuerdo a las acciones de capacitación"]
[null,null,null,"","Talento y superdotación",null,null,null,null,null,null,null,null,null,"realizadas, registradas en pregunta 114."]
[null,null,null,"","Otro",""]
[]
[null,"114. ¿QUÉ Y CUÁNTAS ACCIONES DE CAPACITACIÓN SE HAN REALIZADO POR EL",null,null,null,null,null,null,null,null,null,null,"116. ATENCIÓN A DOCENTES Y PROFESIONALES NO DOCENTES, POR SEXO Y POR"]
[null,null,"CREBE, EN EL PRESENTE AÑO?",null,null,null,null,null,null,null,null,null,null,"TIPO DE MODALIDAD DE ACUERDO A LAS ACCIONES DE CAPACITACIÓN"]
[null,null,null,null,null,null,null,null,null,null,null,null,null,"REALIZADAS POR EL CREBE?"]
[null,null,null,null,null,null,"¿Realizó la acción\nde capacitación?",null,null,"Si la respuesta\nes \"SÍ\""]
[null,null,"Acciones de Capacitación",null,null,null,null,null,null,null,null,null,null,null,null,null,null,"Docentes",null,null,"Profesionales\nNo docentes"]
[null,null,null,null,null,null,null,null,null,"¿Cuántas acciones\nrealizó?",null,null,null,"Modalidad"]
[null,null,null,null,null,null,"SI","NO",null,null,null,null,null,null,null,null,null,"H","M",null,"H","M"]
[null,null,1,"Conferencia",null,null,"","",null,"","",null,null,1,"EBE",null,null,"","",null,"",""]
[null,null,2,"Taller",null,null,"","",null,"","",null,null,2,"EBR",null,null,"","",null,"",""]
[null,null,3,"Seminario",null,null,"","",null,"","",null,null,3,"EBA",null,null,"","",null,"",""]
[null,null,4,"Capacitación",null,null,"","",null,"","",null,null,4,"EIB",null,null,"","",null,"",""]
[null,null,5,"Otro","",null,"","",null,"","",null,null,5,"SUPERIOR",null,null,"","",null,"",""]
[null,null,null,null,null,null,null,null,null,null,null,null,null,"Nota:","El total de atendidos debe ser igual al total de la pregunta 115."]
[]
[null,null,"E. GESTIÓN PEDAGÓGICA"]
[null,null,"Solo si el servicio educativo es PANETS, responder preguntas 117, 118, 119, 120 y 121"]
[null,"117. ¿EL SERVICIO EDUCATIVO BRINDA CAPACITACIÓN A DOCENTES Y PSICÓLOGOS",null,null,null,null,null,null,null,null,null,null,"120. ¿EL SERVICIO EDUCATIVO REALIZA ACCIONES DE DIFUSIÓN DEL PROGRAMA"]
[null,null,"DE INSTITUCIONES EDUCATIVAS DE EBR Y EBA PARA LA IDENTIFICACIÓN Y",null,null,null,null,null,null,null,null,null,null,"Y DE SENSIBILIZACIÓN RESPECTO A LA ATENCIÓN EDUCATIVA DE ESTUDIANTES"]
[null,null,"ATENCIÓN DE LOS ESTUDIANTES CON ALTAS CAPACIDADES A TRAVÉS DEL",null,null,null,null,null,null,null,null,null,null,"CON ALTAS CAPACIDADES?"]
[null,null,"ENRIQUECIMIENTO CURRICULAR EN EL AULA?"]
[null,null,null,null,null,null,null,null,null,null,null,null,null,"Sí  ","",null,null,"No  ",""]
[null,null,"Sí  ","",null,null,"No  ",""]
[null,null,null,null,null,null,null,null,null,null,null,null,null,null,null,"¿Qué acciones realizan?"]
[null,"118. ¿EL SERVICIO EDUCATIVO ASESORA Y ACOMPAÑA A LAS FAMILIAS EN LAS",null,null,null,null,null,null,null,null,null,null,null,null,null,"Marque con una “X”, una o más opciones"]
[null,null,"ALTAS CAPACIDADES Y EN EL APOYO QUE PUEDEN BRINDAR A SUS HIJAS O"]
[null,null,"HIJOS DURANTE SU ESCOLARIDAD?",null,null,null,null,null,null,null,null,null,null,null,null,null,"","Acciones de difusión"]
[null,null,null,null,null,null,null,null,null,null,null,null,null,null,null,null,"","Acciones de sensibilización"]
[null,null,"Sí  ","",null,null,"No  ",""]
[]
[null,null,null,null,"¿Qué acciones realizan?",null,null,null,null,null,null,null,"121. ¿EL SERVICIO EDUCATIVO DESARROLLA DISTINTAS METODOLOGÍAS ACTIVAS"]
[null,null,null,null,"Marque con una “X”, una o más opciones",null,null,null,null,null,null,null,null,"PARA EL APRENDIZAJE EN LA ATENCIÓN A ESTUDIANTES CON ALTAS CAPACIDADES?"]
[]
[null,null,null,null,null,"","Talleres con familia",null,null,null,null,null,null,"Sí  ","",null,null,"No  ",""]
[null,null,null,null,null,"","Atención personalizada"]
[null,null,null,null,null,null,null,null,null,null,null,null,null,null,null,"¿Qué metodologías desarrolla?"]
[null,"119. ¿EL SERVICIO EDUCATIVO IMPLEMENTA ACCIONES EN EL MARCO DEL",null,null,null,null,null,null,null,null,null,null,null,null,null,"Marque con una “X”, una o más opciones"]
[null,null,"TRABAJO COLEGIADO?"]
[null,null,null,null,null,null,null,null,null,null,null,null,null,null,null,null,"","Proyectos de aprendizaje"]
[null,null,"Sí  ","",null,null,"No  ","",null,null,null,null,null,null,null,null,"","Aprendizaje basado en retos y proyectos"]
[null,null,null,null,null,null,null,null,null,null,null,null,null,null,null,null,"","Aprendizaje basado en problemas"]
[null,null,null,null,"¿Qué acciones realizan?",null,null,null,null,null,null,null,null,null,null,null,"","Estudios de casos"]
[null,null,null,null,"Marque con una “X”, una o más opciones",null,null,null,null,null,null,null,null,null,null,null,"","Otros",""]
[]
[null,null,null,null,null,"","Círculos de aprendizaje"]
[null,null,null,null,null,"","Círculos de estudio"]
[null,null,null,null,null,"","Espacios de intercambio de experiencia"]
[null,null,null,null,null,"","Análisis de casos"]
[null,null,null,null,null,"","Otros",""]
[]
[]
[null,null,"F. LÍNEA DE PRODUCCIÓN Y/O ADAPTACIÓN DE MATERIALES Y RECURSOS EDUCATIVOS PARA LA ATENCIÓN A LA DIVERSIDAD"]
[null,null,"Solo si el servicio educativo es CREBE, responder preguntas 122, 123 y 124"]
[null,"122. ¿HA REALIZADO ACCIONES REFERENTE A LA LÍNEA DE PRODUCCIÓN Y/O ADAPTACIÓN DE MATERIALES Y RECURSOS EDUCATIVOS PARA LA ATENCIÓN A LA  DIVERSIDAD?"]
[]
[null,null,null,null,null,null,null,"Sí  ","",null,null,null,"No  ","",null,null,"Pase a la pregunta 125"]
[]
[null,"123. CANTIDAD DE MATERIALES PRODUCIDOS Y/O ADAPTADOS POR TIPO DE",null,null,null,null,null,null,null,null,null,null,"124. CANTIDAD DE POBLACIÓN ATENDIDA POR MATERIAL PRODUCIDO O "]
[null,null,"POBLACIÓN ATENDIDA",null,null,null,null,null,null,null,null,null,null,"ADAPTADO Y TIPO DE POBLACIÓN"]
[]
[null,null,null,"El material atiende a población con:",null,null,null,null,null,"Material",null,null,null,null,"Población atendida con:",null,null,null,null,null,"Material"]
[null,null,null,null,null,null,null,null,null,"Producido","Adaptado",null,null,null,null,null,null,null,null,null,"Producido","Adaptado"]
[null,null,1,"Discapacidad auditiva",null,null,null,null,null,null,null,null,null,1,"Discapacidad auditiva"]
[null,null,2,"Discapacidad intelectual",null,null,null,null,null,null,null,null,null,2,"Discapacidad intelectual"]
[null,null,3,"Discapacidad motriz",null,null,null,null,null,null,null,null,null,3,"Discapacidad motriz"]
[null,null,4,"Discapacidad TEA",null,null,null,null,null,null,null,null,null,4,"Discapacidad TEA"]
[null,null,5,"Discapacidad sordoceguera",null,null,null,null,null,null,null,null,null,5,"Discapacidad sordoceguera"]
[null,null,6,"Talento y superdotación",null,null,null,null,null,null,null,null,null,6,"Talento y superdotación"]
[null,null,7,"Elaboración de macrotipos uso propio",null,null,null,null,null,null,null,null,null,7,"Elaboración de macrotipos uso propio"]
[null,null,8,"Otro","",null,null,null,null,null,null,null,null,8,"Otro",""]
[]
[null,null,null,null,null,null,null,null,null,null,null,null,null,"Nota:","La información debe ser respecto al material producido o"]
[null,null,null,null,null,null,null,null,null,null,null,null,null,null,"adaptado registrado en la pregunta 123"]
[]
[]
[null,null,"G. ATENCIÓN EDUCATIVA"]
[null,null,"Solo si el servicio educativo es PANETS, responder pregunta 125"]
[null,"125. ATENCIÓN EDUCATIVA EN PANETS POR EDAD, SEXO, TALENTO Y SUPERDOTACIÓN"]
[]
[null,null,null,null,null,"Edad en años cumplidos\nal 31-03-2025",null,null,null,"TOTAL",null,"TALENTO",null,"SUPERDOTACIÓN"]
[null,null,null,null,null,null,null,null,null,null,null,null,null,null,null,null,null,"Talento:"]
[null,null,null,null,null,null,null,null,null,"H","M","H","M","H",null,"M",null,"Cuando un estudiante tiene un dominio destacado o destreza en un ámbito en especial, por ejemplo, en un curso académico o un interés artístico, deportivo, musical o de otra índole."]
[null,null,null,null,"00",null,"TOTAL",null,null,{"$f":"SUM(J219:J232)","v":0},{"$f":"SUM(K219:K232)","v":0},{"$f":"SUM(L219:L232)","v":0},{"$f":"SUM(M219:M232)","v":0},{"$f":"SUM(N219:N232)","v":0},null,{"$f":"SUM(P219:P232)","v":0}]
[null,null,null,null,"01",null,5,null,null,{"$f":"L219+N219","v":0},{"$f":"M219+P219","v":0}]
[null,null,null,null,"02",null,6,null,null,{"$f":"L220+N220","v":0},{"$f":"M220+P220","v":0}]
[null,null,null,null,"03",null,7,null,null,{"$f":"L221+N221","v":0},{"$f":"M221+P221","v":0}]
[null,null,null,null,"04",null,8,null,null,0,0]
[null,null,null,null,"05",null,9,null,null,0,0,null,null,null,null,null,null,"Superdotación:"]
[null,null,null,null,"06",null,10,null,null,0,0,null,null,null,null,null,null,"Cuando un estudiante tiene características cognitivas superiores, creatividad y perseverancia en las tareas, lo que les brinda un dominio potencial o aptitud sobresaliente en todas las áreas."]
[null,null,null,null,"07",null,11,null,null,0,0]
[null,null,null,null,"08",null,12,null,null,0,0]
[null,null,null,null,"09",null,13,null,null,0,0]
[null,null,null,null,"10",null,14,null,null,0,0]
[null,null,null,null,"11",null,15,null,null,0,0]
[null,null,null,null,"12",null,16,null,null,0,0]
[null,null,null,null,"13",null,17,null,null,0,0]
[null,null,null,null,"14",null,18,null,null,0,0]

{"sheet":"C200","index":2,"n_rows":162,"n_cols":43,"rows_kept":162,"cut":false,"hidden":false,"merged":[[12,26,12,27],[15,28,17,28],[15,31,17,31],[15,26,17,26],[15,25,17,25],[15,16,17,16],[15,17,17,17],[15,35,17,35],[15,29,17,29],[15,33,17,33],[15,30,17,30],[15,32,17,32],[15,34,16,34],[15,27,17,27],[6,10,6,23],[15,23,17,23],[15,10,17,10],[15,18,17,18],[15,22,17,22],[15,19,17,19],[14,14,14,15],[15,14,15,15],[15,20,17,20],[15,11,17,11],[15,12,17,12],[15,13,17,13],[7,10,7,23],[15,21,17,21],[15,24,17,24]]}
[]
[null,null,null,null,null,null,null,null,null,null,null,null,"CENSO EDUCATIVO 2025"]
["SERVICIO",{"$f":"IF(UPPER('C100'!I23)=\"X\",1,IF(UPPER('C100'!N23)=\"X\",2,\"\"))","v":""},null,null,null,null,null,null,null,null,null,null,"MATRÍCULA, DOCENTES Y RECURSOS"]
[]
["PERSONAL",{"$f":"Q10+U10+W10","v":0}]
[]
["DOCENTES",{"$f":"COUNTIF(Q19:Q118,\"01: Docente\")","v":0},null,null,null,null,null,null,null,null,"200. PERSONAL DOCENTE, NO DOCENTE Y ADMINISTRATIVO"]
["NO DOCENTES",{"$f":"COUNTIF(Q19:Q118,\"04: No Docente\")","v":0},null,null,null,null,null,null,null,null,"En esta tabla, REGISTRE a todo el personal docente, no docente y personal administrativo que se encuentre laborando en el servicio/nivel educa vo durante el periodo de reporte del censo educativo.\n(EXCLUYA al personal que se encuentre haciendo uso de licencia y a los que han sido destacados a otra IE/DRE/UGEL)"]
["ADMINISTRATIVOS",{"$f":"COUNTIF(Q19:Q118,\"02: Administrativo\")","v":0}]
[null,null,null,null,null,null,null,null,null,null,null,null,"TOTAL PROFESIONALES :  ",{"$f":"Q10+U10","v":0},null,"DOCENTES :  ",null,null,null,"NO DOCENTES :  ",null,"ADMINISTRATIVOS :  "]
["DOCENTES CON SECCIÓN",{"$f":"COUNTIF(AH19:AH118,\"SI\")","v":0}]
[null,{"$f":"B7+B8+B9","v":0},null,null,null,null,null,null,null,null,"El “Total Profesionales”, considera a todo el personal que cumplen funciones en el Servicio educativo: Directoras(res), Docentes, coordinadoras(res), responsables del PRITE con o sin aula a cargo y administrativos."]
["LENGUA ORIGINARIA",null,null,null,null,null,null,null,null,null,"Documentos fuente: Legajo de personal y CAP de la Institución Educativa."]
[]
[null,null,null,null,null,null,null,null,null,null,null,201.1,201.2,201.3,202,null,203,204,205,206,207,208,209,210,211,212,213,214,215,216,217,218,219,220,221,222]
["GESTIÓN",{"$f":"IF(OR(UPPER('C100'!I27)=\"X\",UPPER('C100'!N27)=\"X\"),1,IF(UPPER('C100'!S27)=\"X\",3,\"\"))","v":""},null,null,null,null,null,null,null,null,"Nº","Apellido Paterno","Apellido Materno","Nombres","Documento de Identidad",null,"Tipo de\nPersonal","Edad","Sexo","Lengua\nmaterna","¿Domina una\nlengua\noriginaria?\nSí - No","Lengua originaria\nque domina","Fuente de\nfinanciamiento","Condición Laboral","Modalidad de Contrato","Máximo nivel\neducativo alcanzado","Especialidad Pedagógica\nque ha estudiado","¿En qué tipo de\ninstitución obtuvo su\nformación pedagógica?","Estudios de Postgrado en Pedagogía","Años de Experiencia Laboral","Años de\nexperiencia\nlaboral en\neste servicio/nivel\neducativo","Función o cargo","Situación en cargo\ndirectivo","¿Tiene secciones a cargo?","¿Presenta alguna discapacidad?","Solo si respondió Sí en la pregunta\n221 ¿Cúal es el tipo de discapacidad?"]
[null,null,"Exp1","Exp2","Exp3","Exp4","Exp5","Exp6","Exp7",null,null,null,null,null,302.10000000000002,302.2]
["302.1 Tipo de documento de Identidad","314. Tipo de inst. donde estudio","Corr","Escala","Gest","Tipo","Duplex","Fmt",null,null,null,null,null,null,"Tipo","Número",null,null,null,null,null,null,null,null,null,null,null,null,null,null,null,null,null,null,"Sí / No"]
["01: DNI.","01: IESP (Público)",1,{"$f":"IF(AND(LEFT(Q19,2)=\"01\",LEFT(W19,2)=\"01\",LEFT(X19,2)=\"01\",E19=1),1,0)","v":0},{"$f":"$B$16","v":""},{"$f":"IF(Q19<>\"\",VALUE(LEFT(Q19,2)),0)","v":0},{"$f":"IF(P19<>\"\",COUNTIF($P$19:$P$319,P19),0)","v":0},{"$f":"IF(K19<>\"\",1,0)","v":0},{"$f":"$B$3","v":""},null,{"$f":"IF(C19<=$B$5,C19,\"\")","v":""},"","","","","","","","","","","","","","","","","","","","","","","","","","","",null,"","","",""]
["02: Carnet Ext.","02: IESP (Privado)",2,{"$f":"IF(AND(LEFT(Q20,2)=\"01\",LEFT(W20,2)=\"01\",LEFT(X20,2)=\"01\",E20=1),1,0)","v":0},{"$f":"$B$16","v":""},{"$f":"IF(Q20<>\"\",VALUE(LEFT(Q20,2)),0)","v":0},{"$f":"IF(P20<>\"\",COUNTIF($P$19:$P$319,P20),0)","v":0},{"$f":"IF(K20<>\"\",1,0)","v":0},{"$f":"$B$3","v":""},null,{"$f":"IF(C20<=$B$5,C20,\"\")","v":""},"","","","","","","","","","","","","","","","","","","","","","","","",""]
["03: Pasaporte","03: Universidad Privada",3,0,"",0,0,{"$f":"IF(K21<>\"\",1,0)","v":0},"",null,{"$f":"IF(C21<=$B$5,C21,\"\")","v":""},"","","","","","","","","","","","","","","","","","","","","","","","",""]
[null,"04: Universidad Pública",4,0,"",0,0,0,"",null,"","","","","","","","","","","","","","","","","","","","","","","","","",""]
["303. Tipo de Personal","05: EESP (Público)",5,0,"",0,0,0,"",null,"","","","","","","","","","","","","","","","","","","","","","","","","",""]
["01: Docente","06: EESP (Privado)",6,0,"",0,0,0,"",null,"","","","","","","","","","","","","","","","","","","","","","","","","","","","",""]
["02: Administrativo","315. Segunda Especialidad",7,0,"",0,0,0,"",null,"","","","","","","","","","","","","","","","","","","","","","","","","","","","",""]
["04: No Docente","Utilice las especialidades de la tabla de códigos 313.",8,0,"",0,0,0,"",null,"","","","","","","","","","","","","","","","","","","","","","","","","","","","",""]
["03: Aux. de Educación","316. Estudios de Postgrado en Pedagogía",9,0,"",0,0,0,"",null,"","","","","","","","","","","","","","","","","","","","","","","","","","","","",""]
[null,"Estudios de Maestría y doctorado",10,0,"",0,0,0,"",null,"","","","","","","","","","","","","","","","","","","","","","","","","","","","",""]
["305. Sexo","01: Maestria concluida con grado",11,0,"",0,0,0,"",null,"","","","","","","","","","","","","","","","","","","","","","","","","","","","",""]
["Hombre","02: Maestria concluida sin grado",12,0,"",0,0,0,"",null,"","","","","","","","","","","","","","","","","","","","","","","","","","","","",""]
["Mujer","03: Maestria en proceso",13,0,"",0,0,0,"",null,"","","","","","","","","","","","","","","","","","","","","","","","","","","","",""]
[null,"04: Doctorado concluido con grado",14,0,"",0,0,0,"",null,"","","","","","","","","","","","","","","","","","","","","","","","","","","","",""]
["306. Lengua Materna","05: Doctorado concluido sin grado",15,0,"",0,0,0,"",null,"","","","","","","","","","","","","","","","","","","","","","","","","","","","",""]
["0100: Castellano","06: Doctorado en proceso",16,0,"",0,0,0,"",null,"","","","","","","","","","","","","","","","","","","","","","","","","","","","",""]
["0200: Achuar","07: Sin Postgrado",17,0,"",0,0,0,"",null,"","","","","","","","","","","","","","","","","","","","","","","","","","","","",""]
["0300: Aimara",null,18,0,"",0,0,0,"",null,"","","","","","","","","","","","","","","","","","","","","","","","","","","","",""]
["0400: Amahuaca",null,19,0,"",0,0,0,"",null,"","","","","","","","","","","","","","","","","","","","","","","","","","","","",""]
["0500: Arabela","317. Tiempo de Servicio",20,0,"",0,0,0,"",null,"","","","","","","","","","","","","","","","","","","","","","","","","","","","",""]
["0600: Asháninka","Solo personal Nombrado.",21,0,"",0,0,0,"",null,"","","","","","","","","","","","","","","","","","","","","","","","","","","","",""]
["0610: Asheninka","Tiempo contado expresado en años desde su fecha de Nombramiento",22,0,"",0,0,0,"",null,"","","","","","","","","","","","","","","","","","","","","","","","","","","","",""]
["0700: Awajún",null,23,0,"",0,0,0,"",null,"","","","","","","","","","","","","","","","","","","","","","","","","","","","",""]
["0800: Bora","318. Años de Experiencia Laboral",24,0,"",0,0,0,"",null,"","","","","","","","","","","","","","","","","","","","","","","","","","","","",""]
["0900: Kapanawa","Registre el total de años que tiene como experiencia",25,0,"",0,0,0,"",null,"","","","","","","","","","","","","","","","","","","","","","","","","","","","",""]
["1000: Cashinahua","en el Tipo de Personal que se está registrando (Tabla 301.)",26,0,"",0,0,0,"",null,"","","","","","","","","","","","","","","","","","","","","","","","","","","","",""]
["1100: Kawki",null,27,0,"",0,0,0,"",null,"","","","","","","","","","","","","","","","","","","","","","","","","","","","",""]
["1200: Chamikuro","319. Años de experiencia laboral en este servicio/ nivel educativo",28,0,"",0,0,0,"",null,"","","","","","","","","","","","","","","","","","","","","","","","","","","","",""]
["1300: Ese eja","Anote el N° de años de experiencia prestando servicios",29,0,"",0,0,0,"",null,"","","","","","","","","","","","","","","","","","","","","","","","","","","","",""]
["1400: Harakbut","en este servicio/nivel educativo por el tipo de personal",30,0,"",0,0,0,"",null,"","","","","","","","","","","","","","","","","","","","","","","","","","","","",""]
["1500: Iñapari","que se está registrando (Tabla 301.)",31,0,"",0,0,0,"",null,"","","","","","","","","","","","","","","","","","","","","","","","","","","","",""]
["1600: Ikuitu",null,32,0,"",0,0,0,"",null,"","","","","","","","","","","","","","","","","","","","","","","","","","","","",""]
["1700: Iskonawa","320. Escala Magisterial",33,0,"",0,0,0,"",null,"","","","","","","","","","","","","","","","","","","","","","","","","","","","",""]
["1800: Jaqaru","Complete los datos de Escala Magisterial, según corresponda",34,0,"",0,0,0,"",null,"","","","","","","","","","","","","","","","","","","","","","","","","","","","",""]
["1900: Kakataibo","01: Primera",35,0,"",0,0,0,"",null,"","","","","","","","","","","","","","","","","","","","","","","","","","","","",""]
["2000: Kakinte (caquinte)","02: Segunda",36,0,"",0,0,0,"",null,"","","","","","","","","","","","","","","","","","","","","","","","","","","","",""]
["2110: Kandozi (Chapra)","03: Tercera",37,0,"",0,0,0,"",null,"","","","","","","","","","","","","","","","","","","","","","","","","","","","",""]
["2120: Kandozi (Kandozi)","04: Cuarta",38,0,"",0,0,0,"",null,"","","","","","","","","","","","","","","","","","","","","","","","","","","","",""]
["2200: Kukama-kukamiria","05: Quinta",39,0,"",0,0,0,"",null,"","","","","","","","","","","","","","","","","","","","","","","","","","","","",""]
["2300: Madija (culina)","06: Sexta",40,0,"",0,0,0,"",null,"","","","","","","","","","","","","","","","","","","","","","","","","","","","",""]
["2400: Maijiki","07: Séptima",41,0,"",0,0,0,"",null,"","","","","","","","","","","","","","","","","","","","","","","","","","","","",""]
["2500: Matsés","08: Octava",42,0,"",0,0,0,"",null,"","","","","","","","","","","","","","","","","","","","","","","","","","","","",""]
["2600: Matsigenka","09: Sin Escala",43,0,"",0,0,0,"",null,"","","","","","","","","","","","","","","","","","","","","","","","","","","","",""]
["2700: Munichi",null,44,0,"",0,0,0,"",null,"","","","","","","","","","","","","","","","","","","","","","","","","","","","",""]
["2800: Murui-muinani","321. Función o Cargo CREBE",45,0,"",0,0,0,"",null,"","","","","","","","","","","","","","","","","","","","","","","","","","","","",""]
["2900: Matsigenka-montetokunirira","(Desempeñado a la fecha de reporte)",46,0,"",0,0,0,"",null,"","","","","","","","","","","","","","","","","","","","","","","","","","","","",""]
["3000: Nomatsigenga","Docentes",47,0,"",0,0,0,"",null,"","","","","","","","","","","","","","","","","","","","","","","","","","","","",""]
["3100: Ocaina","01: Director de CREBE",48,0,"",0,0,0,"",null,"","","","","","","","","","","","","","","","","","","","","","","","","","","","",""]
["3200: Omagua","02: Director (e) de CREBE",49,0,"",0,0,0,"",null,"","","","","","","","","","","","","","","","","","","","","","","","","","","","",""]
["3310: Quechua amazónico (Kichwa)","03: Coordinador",50,0,"",0,0,0,"",null,"","","","","","","","","","","","","","","","","","","","","","","","","","","","",""]
["3321: Quechua central (Ancash)","04: Docente encargado",51,0,"",0,0,0,"",null,"","","","","","","","","","","","","","","","","","","","","","","","","","","","",""]
["3322: Quechua central (Huánuco)","05: Docente",52,0,"",0,0,0,"",null,"","","","","","","","","","","","","","","","","","","","","","","","","","","","",""]
["3323: Quechua central (Wanka)","06: Otro",53,0,"",0,0,0,"",null,"","","","","","","","","","","","","","","","","","","","","","","","","","","","",""]
["3324: Quechua central (Pasco)","No Docentes",54,0,"",0,0,0,"",null,"","","","","","","","","","","","","","","","","","","","","","","","","","","","",""]
["3331: Quechua norteño (Cajamarca)","07: Psicólogo",55,0,"",0,0,0,"",null,"","","","","","","","","","","","","","","","","","","","","","","","","","","","",""]
["3332: Quechua norteño (Inkawasi Kañaris)","08: Modelo Lingüistico",56,0,"",0,0,0,"",null,"","","","","","","","","","","","","","","","","","","","","","","","","","","","",""]
["3341: Quechua sureño (Chanka)","09: Técnico en producción de materiales",57,0,"",0,0,0,"",null,"","","","","","","","","","","","","","","","","","","","","","","","","","","","",""]
["3342: Quechua sureño (Collao)","Administrativos",58,0,"",0,0,0,"",null,"","","","","","","","","","","","","","","","","","","","","","","","","","","","",""]
["3400: Resígaro","10: Coordinador administ., logístico",59,0,"",0,0,0,"",null,"","","","","","","","","","","","","","","","","","","","","","","","","","","","",""]
["3500: Secoya","11: Personal de limpieza",60,0,"",0,0,0,"",null,"","","","","","","","","","","","","","","","","","","","","","","","","","","","",""]
["3600: Sharanahua","12: Personal de seguridad",61,0,"",0,0,0,"",null,"","","","","","","","","","","","","","","","","","","","","","","","","","","","",""]
["3700: Shawi",null,62,0,"",0,0,0,"",null,"","","","","","","","","","","","","","","","","","","","","","","","","","","","",""]
["3800: Shipibo-Konibo","321. Función o Cargo PANETS",63,0,"",0,0,0,"",null,"","","","","","","","","","","","","","","","","","","","","","","","","","","","",""]
["3900: Shiwilu","Docentes",64,0,"",0,0,0,"",null,"","","","","","","","","","","","","","","","","","","","","","","","","","","","",""]
["4000: Taushiro","01: Director",65,0,"",0,0,0,"",null,"","","","","","","","","","","","","","","","","","","","","","","","","","","","",""]
["4100: Ticuna","02: Docente-Matemáticas",66,{"$f":"IF(AND(LEFT(Q84,2)=\"01\",LEFT(W84,2)=\"01\",LEFT(X84,2)=\"01\",E84=1),1,0)","v":0},{"$f":"$B$16","v":""},{"$f":"IF(Q84<>\"\",VALUE(LEFT(Q84,2)),0)","v":0},{"$f":"IF(P84<>\"\",COUNTIF($P$19:$P$319,P84),0)","v":0},0,{"$f":"$B$3","v":""},null,"","","","","","","","","","","","","","","","","","","","","","","","","","","","",""]
["4200: Urarina","03: Docente-Comunicación",67,0,"",0,0,{"$f":"IF(K85<>\"\",1,0)","v":0},"",null,{"$f":"IF(C85<=$B$5,C85,\"\")","v":""},"","","","","","","","","","","","","","","","","","","","","","","","","","","",""]
["4300: Wampis","04: Docente-Música",68,0,"",0,0,0,"",null,"","","","","","","","","","","","","","","","","","","","","","","","","","","","",""]
["4400: Yagua","05: Docente-Ciencias",69,0,"",0,0,0,"",null,"","","","","","","","","","","","","","","","","","","","","","","","","","","","",""]
["4500: Yaminahua","06: Docente-Artes Plásticas",70,0,"",0,0,0,"",null,"","","","","","","","","","","","","","","","","","","","","","","","","","","","",""]
["4600: Yanesha","07: Docente-Computación o Tecnología",71,0,"",0,0,0,"",null,"","","","","","","","","","","","","","","","","","","","","","","","","","","","",""]
["4700: Yine","08: Docente-Idiomas",72,0,"",0,0,0,"",null,"","","","","","","","","","","","","","","","","","","","","","","","","","","","",""]
["4800: Nahua","09: Docente-Actividades teatrales",73,0,"",0,0,0,"",null,"","","","","","","","","","","","","","","","","","","","","","","","","","","","",""]
["5100: Alemán","No Docentes",74,0,"",0,0,0,"",null,"","","","","","","","","","","","","","","","","","","","","","","","","","","","",""]
["5200: Inglés","10: Psicólogo",75,0,"",0,0,0,"",null,"","","","","","","","","","","","","","","","","","","","","","","","","","","","",""]
["5300: Italiano","Administrativos",76,0,"",0,0,0,"",null,"","","","","","","","","","","","","","","","","","","","","","","","","","","","",""]
["5400: Japonés","11: Asistente administrativo",77,0,"",0,0,0,"",null,"","","","","","","","","","","","","","","","","","","","","","","","","","","","",""]
["5500: Portugués","12: Secretaria u oficinista",78,0,"",0,0,0,"",null,"","","","","","","","","","","","","","","","","","","","","","","","","","","","",""]
["5600: Ruso","13: Personal de servicio - Vigilante",79,0,"",0,0,0,"",null,"","","","","","","","","","","","","","","","","","","","","","","","","","","","",""]
["5700: Francés",null,80,0,"",0,0,0,"",null,"","","","","","","","","","","","","","","","","","","","","","","","","","","","",""]
["5800: Otra lengua extranjera",null,81,0,"",0,0,0,"",null,"","","","","","","","","","","","","","","","","","","","","","","","","","","","",""]
[null,null,82,0,"",0,0,0,"",null,"","","","","","","","","","","","","","","","","","","","","","","","","","","","",""]
["308. Lengua Originaria",null,83,0,"",0,0,0,"",null,"","","","","","","","","","","","","","","","","","","","","","","","","","","","",""]
["De: 0200 a 4800",null,84,0,"",0,0,0,"",null,"","","","","","","","","","","","","","","","","","","","","","","","","","","","",""]
[null,null,85,0,"",0,0,0,"",null,"","","","","","","","","","","","","","","","","","","","","","","","","","","","",""]
["309. Fuente de Financiamiento",null,86,0,"",0,0,0,"",null,"","","","","","","","","","","","","","","","","","","","","","","","","","","","",""]
["01: Sector Educación",null,87,0,"",0,0,0,"",null,"","","","","","","","","","","","","","","","","","","","","","","","","","","","",""]
["02: Otro sector público",null,88,0,"",0,0,0,"",null,"","","","","","","","","","","","","","","","","","","","","","","","","","","","",""]
["03: Municipalidad",null,89,0,"",0,0,0,"",null,"","","","","","","","","","","","","","","","","","","","","","","","","","","","",""]
["04: Gobierno Regional",null,90,0,"",0,0,0,"",null,"","","","","","","","","","","","","","","","","","","","","","","","","","","","",""]
["05: APAFA",null,91,0,"",0,0,0,"",null,"","","","","","","","","","","","","","","","","","","","","","","","","","","","",""]
["06: Otra fuente Privada",null,92,0,"",0,0,0,"",null,"","","","","","","","","","","","","","","","","","","","","","","","","","","","",""]
[null,null,93,0,"",0,0,0,"",null,"","","","","","","","","","","","","","","","","","","","","","","","","","","","",""]
["310. Condición Laboral","322. Situación en el Cargo Directivo CREBE",94,0,"",0,0,0,"",null,"","","","","","","","","","","","","","","","","","","","","","","","","","","","",""]
["01: Nombrado","01: Titular ratificado",95,0,"",0,0,0,"",null,"","","","","","","","","","","","","","","","","","","","","","","","","","","","",""]
["02: Contratado","02: Titular designado",96,0,"",0,0,0,"",null,"","","","","","","","","","","","","","","","","","","","","","","","","","","","",""]
["03: No aplica","03: Encargado por función",97,0,"",0,0,0,"",null,"","","","","","","","","","","","","","","","","","","","","","","","","","","","",""]
[null,"04: Encargado",98,0,"",0,0,0,"",null,"","","","","","","","","","","","","","","","","","","","","","","","","","","","",""]
["311. Modalidad de Contrato",null,99,0,"",0,0,0,"",null,"","","","","","","","","","","","","","","","","","","","","","","","","","","","",""]
["Contrato Público",null,100,0,"",0,0,0,"",null,"","","","","","","","","","","","","","","","","","","","","","","","","","","","",""]
["01: A plazo fijo D. Leg. 728",null,null,null,null,null,null,null,null,null,null,"","","","","","","","","","","","","","","","","","","","","","",""]
["02: Locación de Serv. / Honorarios","99: Auxiliar de Educación",null,null,null,null,null,null,null,null,"…","…","…","…","…","…","…","…","…","…","…","…","…","…","…","…","…","…","…","…","…","…","…","…","…","…"]
["03: CAS - D. Leg. 1057"]
["04: Contrato D. Leg. 276","322. Situación en el Cargo Directivo PANETS"]
["05: Contrato Ley 30328","01: Titular ratificado eval.2014"]
["06: Otra modalidad","02: Titular designado eval. 2015, 2016 y 2018"]
["Contrato Privado","03: Titular otro Encargado"]
["07: A plazo indefinido (Permanente)","04: Encargado por función, sin doc. formal"]
["08: Plazo fijo (Tiempo determinado)"]
["09: A tiempo parcial (por horas)"]
["10: Locación de Serv. / Honorarios","323. Destaque o Licencia"]
["11: Otra modalidad","01: Cubriendo una licencia"]
[null,"02: De otra I.E./DRE/UGEL"]
["312. Máximo Nivel Educativo Alcanzado","03: No Aplica"]
["01: EP.Concluidos con título"]
["02: EP.Concluidos sin título"]
["03: EP.No concluidos"]
["04: NP.Concluidos con título","324. Jornada Laboral (Nombramiento / Contrato)"]
["05: NP.Concluidos sin título","40: 40 horas"]
["06: NP.No concluidos","30: 30 horas"]
["07: Secundaria","24: 24 horas"]
["08: Primaria","20: 20 horas"]
[null,"19: Menos 20 horas"]
["313. Especialidad CREBE"]
["01: Educación Inicial","SI / NO"]
["02: Educación Primaria","SI"]
["03: Educación Secundaria","NO"]
["04: Otra"]
[null,"Parroquiales"]
["313. Especialidad PANETS","05: APAFA"]
["01: Educación Inicial","06: Otra fuente Privada"]
["02: Educación Primaria","01: Sector Educación"]
["03: Educación Especial"]
["04: Educación Física"]
["05: Educación Artística","336.2 ¿Cuál es el tipo de discapacidad?"]
["06: E.S. Lengua y Literatura","01: Auditiva"]
["07: E.S. Comunicación","02: Visual"]
["08: E.S. Matemática y Física","03: Física o Motora"]
["09: E.S. Matemática","04: Otras"]
["10: E.S. Ciencias Naturales"]
["11: E.S. Ciencia Tecnología y Ambiente"]
["12: E.S. Biología y Química"]
["13: E.S. Idioma Inglés"]
["14: E.T. Computación e Informática"]

{"sheet":"C300","index":3,"n_rows":97,"n_cols":27,"rows_kept":97,"cut":false,"hidden":false,"merged":[[6,1,6,27],[12,15,13,16],[12,17,13,20],[12,21,12,26],[14,15,21,16],[14,17,21,20],[18,7,18,9],[18,10,18,12],[19,7,20,7],[19,8,20,9],[19,12,20,12],[21,8,21,9],[21,10,21,11],[22,8,22,9],[22,10,22,11],[54,2,57,4],[54,5,57,7],[54,8,57,9],[54,10,57,11],[54,12,57,12],[58,2,58,4],[58,5,58,7],[58,8,58,9],[58,10,58,11],[70,5,71,6],[70,8,71,8],[70,9,71,12],[75,9,75,12],[75,20,75,21],[75,22,75,23],[71,16,72,19],[71,20,71,25],[72,9,72,12],[72,22,72,23],[73,9,73,12],[73,20,73,21],[73,22,73,23],[2,6,2,24],[1,6,1,24],[74,9,74,12],[74,20,74,21],[74,22,74,23],[30,17,36,20],[32,15,34,16],[22,15,29,16],[22,17,29,20],[23,10,23,11],[24,8,24,9],[24,10,24,11],[25,3,25,6],[25,8,25,9],[25,10,25,11],[19,10,20,11],[76,9,76,12],[77,9,77,12],[78,9,78,12],[79,9,79,12],[80,9,80,12]]}
[]
[null,null,null,null,null,null,"CENSO EDUCATIVO 2025"]
[null,null,null,null,null,null,"MATRÍCULA, DOCENTES Y RECURSOS"]
[]
[]
[]
[null,"300. GESTIÓN DEL RIESGO DE DESASTRES"]
[]
[null,null,"301. EN EL PRESENTE AÑO, ESTE SERVICIO/NIVEL EDUCATIVO, ¿HA INCORPORADO ACCIONES",null,null,null,null,null,null,null,null,null,null,null,null,"302. SOBRE LA GESTIÓN DEL RIESGO DE DESASTRES EN ESTE SERVICIO/NIVEL EDUCATIVO,"]
[null,null,null,"ESTRATÉGICAS Y OPERATIVAS EN GESTIÓN DEL RIESGO DE DESASTRES Y SEGURIDAD Y",null,null,null,null,null,null,null,null,null,null,null,null,"ATIENDA LAS SIGUIENTES PREGUNTAS:"]
[null,null,null,"DEFENSA NACIONAL EN SUS INSTRUMENTOS DE GESTIÓN VIGENTES? ",null,null,null,null,null,null,null,null,null,null,null,null,"Marque con una “X” en “Si” o “No” según corresponda en atención a cada pregunta"]
[]
[null,null,null,"Sí","",null,null,null,"No  ",null,null,null,null,null,null,"Bien o Servicio",null,"Pregunta",null,null,null,"Marque con un “X”, según corresponda "]
[null,null,null,null,null,null,null,null,null,null,null,null,null,null,null,null,null,null,null,null,null,null,"SI","NO","Si es Sí, de quién lo recibió"]
[null,null,null,null,null,null,null,null,null,null,null,null,null,null,null,"Planos de Seguridad",null,"¿El servicio/nivel educativo cuenta con planos de seguridad acorde a la normativa?"]
[null,null,null,"Precise las acciones incorporadas en los documentos de gestión",null,null,null,null,null,null,null,null,null,null,null,null,null,null,null,null,null,null,null,null,"De la DRE/GRE",null,""]
[null,null,null,"Marque con una “X”, según corresponda ",null,null,null,null,null,null,null,null,null,null,null,null,null,null,null,null,null,null,null,null,"De la UGEL",null,""]
[null,null,null,null,null,null,null,null,null,null,null,null,null,null,null,null,null,null,null,null,null,null,"",null,"De la Municipalidad",null,""]
[null,null,null,null,null,null,null,"Riesgo de Desastres",null,null,"Seguridad y Defensa Nacional",null,null,null,null,null,null,null,null,null,null,null,null,null,"De una entidad privada",null,""]
[null,null,"Documentos de Gestión",null,null,null,null,"Acciones Estratégicas","Acciones Operativas",null,"Acciones Estratégicas",null,"Acciones Operativas",null,null,null,null,null,null,null,null,null,null,null,"Adquisición de la IE",null,""]
[null,null,null,null,null,null,null,null,null,null,null,null,null,null,null,null,null,null,null,null,null,null,null,null,"Donación",null,""]
[null,null,"Proyecto Educativo Inst. (PEI)",null,null,null,null,"",null,null,""]
[null,null,"Plan Anual de Trabajo (PAT)",null,null,null,null,null,"",null,null,null,"",null,null,"Dispositivos de Seguridad",null,"¿El servicio/nivel educativo cuenta con dispositivos de seguridad acorde a lo que indica en sus planos de seguridad?"]
[null,null,"Proyecto Curricular. Inst. (PCI)",null,null,null,null,"",null,null,"",null,null,null,null,null,null,null,null,null,null,null,null,null,"De la DRE/GRE",null,""]
[null,null,"Reglamento Interno (RI)",null,null,null,null,null,"",null,null,null,"",null,null,null,null,null,null,null,null,null,null,null,"De la UGEL",null,""]
[null,null,"Otros","",null,null,null,"","",null,"",null,"",null,null,null,null,null,null,null,null,null,"",null,"De la Municipalidad",null,""]
[null,null,null,null,null,null,null,null,null,null,null,null,null,null,null,null,null,null,null,null,null,null,null,null,"De una entidad privada",null,""]
[null,null,null,null,null,null,null,null,null,null,null,null,null,null,null,null,null,null,null,null,null,null,null,null,"Adquisición de la IE",null,""]
[null,null,null,null,null,null,null,null,null,null,null,null,null,null,null,null,null,null,null,null,null,null,null,null,"Donación",null,""]
[]
[null,null,null,null,null,null,null,null,null,null,null,null,null,null,null,null,null,"¿El servicio/nivel educativo cuenta con dispositivos de seguridad incompletos"]
[null,null,null,null,null,null,null,null,null,null,null,null,null,null,null,null,null,null,null,null,null,null,null,null,"De la DRE/GRE",null,""]
[null,null,null,null,null,null,null,null,null,null,null,null,null,null,null,"Otros Casos",null,null,null,null,null,null,null,null,"De la UGEL",null,""]
[null,null,null,null,null,null,null,null,null,null,null,null,null,null,null,null,null,null,null,null,null,null,"",null,"De la Municipalidad",null,""]
[null,null,null,null,null,null,null,null,null,null,null,null,null,null,null,null,null,null,null,null,null,null,null,null,"De una entidad privada",null,""]
[null,null,null,null,null,null,null,null,null,null,null,null,null,null,null,null,null,null,null,null,null,null,null,null,"Adquisición de la IE",null,""]
[null,null,null,null,null,null,null,null,null,null,null,null,null,null,null,null,null,null,null,null,null,null,null,null,"Donación",null,""]
[]
[]
[]
[null,null,"303. EN EL PRESENTE AÑO, LOS MIEMBROS DE ESTE SERVICIO/NIVEL EDUCATIVO,",null,null,null,null,null,null,null,null,null,null,null,null,"304. EN EL PRESENTE AÑO, ESTE SERVICIO/NIVEL EDUCATIVO HA SUFRIDO EL IMPACTO DE"]
[null,null,null,"¿HAN RECIBIDO ACCIONES FORMATIVAS EN MATERIA DE LA GESTIÓN DEL RIESGO ",null,null,null,null,null,null,null,null,null,null,null,null,"DAÑOS DE UN FENÓMENO NATURAL O ANTRÓPICO?"]
[null,null,null,"DE DESASTRES (GRD) Y/O SEGURIDAD Y DEFENSA NACIONAL (SDN)?"]
[null,null,null,null,null,null,null,null,null,null,null,null,null,null,null,null,"Sí","",null,null,null,null,"No  "]
[null,null,null,"Sí","",null,null,null,"No  "]
[]
[null,null,null,null,null,null,null,null,null,null,"Entidad",null,"SI - NO",null,null,null,null,null,null,"¿El servicio fue",null,null,"Sí",""]
[null,null,null,null,null,"El servicio fue brindado por:",null,null,null,"DRE/GRE",null,null,"",null,null,null,null,null,null,"suspendido?"]
[null,null,null,null,null,null,null,null,null,"UGEL",null,null,"",null,null,null,null,null,null,null,null,null,"No  ",""]
[null,null,null,null,null,null,null,null,null,"Municipio",null,null,""]
[null,null,null,null,null,null,null,null,null,"ONG/Entidad privada",null,null,"",null,null,null,"¿Cuál de los siguientes canales se utilizó para reportar la emergencia a la UGEL?"]
[null,null,null,null,null,null,null,null,null,null,null,null,{"$f":"COUNTIF(M48:M51,\"SI\")+COUNTIF(M48:M51,\"SI\")","v":0},null,null,null,"Marque con una “X”, una o más opciones"]
[null,null,"Tematicas: Marque con una “X”, según corresponda"]
[null,null,"Gestión del Riesgo de Desastres",null,null,null,null,null,null,null,"Seguridad y Defensa Nacional",null,null,null,null,null,"","Celular"]
[null,null,"Política/Plan NAcional en GRD",null,null,"Componentes, procesos o procedimientos de la GRD",null,null,"*Herramientas técnicas / Financieras en GRD",null,"Política/Plan Nacional en SDN",null,"Fundamentos de la SDN",null,null,null,"","Radiofonía"]
[null,null,null,null,null,null,null,null,null,null,null,null,null,null,null,null,"","Teléfono satelital"]
[null,null,null,null,null,null,null,null,null,null,null,null,null,null,null,null,"","Plataforma web"]
[null,null,null,null,null,null,null,null,null,null,null,null,null,null,null,null,"","Por conducto regular (oficio, informe)"]
[null,null,"",null,null,"",null,null,"",null,"",null,"",null,null,null,"","No se sabía que había que reportar a la UGEL"]
[null,null,{"$f":"COUNTIF(C59:M59,\"X\")","v":0},null,null,null,null,null,null,null,null,null,null,null,null,null,"","No se reportó la emergencia porque no hay cobertura ni canal disponible en la zona."]
[]
[]
[null,null,"305. EN EL PRESENTE AÑO, ESTE SERVICIO/NIVEL EDUCATIVO, ¿HA ORGANIZADO Y EJECUTADO",null,null,null,null,null,null,null,null,null,null,null,null,"307. EN EL AÑO 2024, ESTE SERVICIO/NIVEL EDUCATIVO, ¿PARTICIPÓ EN LOS SIMULACROS"]
[null,null,null,"CAMPAÑAS COMUNICACIONALES DE GESTIÓN DEL RIESGO DE DESASTRES (GRD) Y/O",null,null,null,null,null,null,null,null,null,null,null,null,"CONVOCADOS POR MINEDU Y/O INDECI?"]
[null,null,null,"SEGURIDAD Y DEFENSA NACIONAL (SDN)?"]
[null,null,null,null,null,null,null,null,null,null,null,null,null,null,null,null,"Sí","",null,null,null,null,"No  "]
[null,null,null,"Sí","",null,null,null,"No  "]
[]
[null,null,null,null,null,null,null,null,null,null,null,null,null,null,null,null,"¿Qué nivel de preparación lograron?"]
[null,null,null,"Tipo de campaña que realizó",null,null,null,null,null,null,null,null,null,null,null,null,"Marque con una “X”, el nivel logrado en cada simulacro"]
[null,null,null,null,null,"Ítems",null,null,"Elija una opción","Temática de la campaña*"]
[null,null,null,null,null,null,null,{"$f":"COUNTIF(I73:I81,\"SI\")+COUNTIF(I73:I81,\"NO\")","v":0},null,null,null,null,null,null,null,null,"N° de simulacro",null,null,null,"Nivel de preparación Marque con un “X”"]
[null,null,null,1,"Pasacalle",null,null,null,"","",null,null,null,null,null,null,null,null,null,null,"Inicio",null,"Proceso",null,"Bueno","Destacado"]
[null,null,null,2,"Feria",null,null,null,"","",null,null,null,null,null,null,1,"Primer simulacro",null,null,"",null,"",null,"",""]
[null,null,null,3,"Activaciones motivadoras",null,null,null,"","",null,null,null,null,null,null,2,"Segundo simulacro",null,null,"",null,"",null,"",""]
[null,null,null,4,"Conferencias /Foros",null,null,null,"","",null,null,null,null,null,null,3,"Tercer simulacro",null,null,"",null,"",null,"",""]
[null,null,null,5,"Webinars",null,null,null,"",""]
[null,null,null,6,"Difusión de afiches, trípticos, volantes",null,null,null,"",""]
[null,null,null,7,"Murales",null,null,null,"",""]
[null,null,null,8,"Post en redes sociales",null,null,null,"",""]
[null,null,null,9,"Post radiales",null,null,null,"",""]
[]
[]
[null,null,"306. ESTE SERVICIO/NIVEL EDUCATIVO, ¿CUENTA CON UN PLAN DE GESTIÓN DEL RIESGO DE DESASTRES?"]
[]
[null,null,null,"Sí","",null,null,null,"No  "]
[]
[]
[null,null,null,"¿Qué actividades ha desarrollado en el Plan?"]
[null,null,null,"Marque con una “X”, una o más opciones"]
[]
[null,null,null,"","Identificó los peligros más frecuentes de la IE. (Ejem: lluvias, huaycos, entre otros)."]
[null,null,null,"","Identificó las vulnerabilidades en la IE. (Ejem: techos, canaletas, paredes, pisos en mal estado, personal sin capacitación, entre otros)."]
[null,null,null,"","Priorizó acciones correctivas en la infraestructura de la IE con presupuesto de mantenimiento."]
[null,null,null,"","Procedimientos de evacuación a zonas seguras en situaciones de emergencias."]
[null,null,null,"","Procedimientos de contención y soporte socioemocional en situaciones de emergencias."]
[null,null,null,"","Procedimientos de aplicación del currículo vigente en situaciones de emergencias"]

{"sheet":"C400","index":4,"n_rows":134,"n_cols":23,"rows_kept":134,"cut":false,"hidden":false,"merged":[[15,22,16,22],[26,17,26,19],[86,3,86,8],[86,9,86,12],[86,13,86,18],[86,19,86,21],[80,1,80,23],[83,19,83,21],[84,3,84,8],[84,9,84,12],[84,13,84,18],[84,19,84,21],[2,6,2,20],[1,6,1,20],[85,3,85,8],[85,9,85,12],[85,13,85,18],[85,19,85,21],[44,9,44,11],[46,8,46,10],[47,8,47,10],[47,20,47,22],[48,8,48,10],[69,20,69,22],[6,1,6,23],[15,15,16,19],[15,20,16,20],[15,21,16,21]]}
[]
[null,null,null,null,null,null,"CENSO EDUCATIVO 2025"]
[null,null,null,null,null,null,"MATRÍCULA, DOCENTES Y RECURSOS"]
[]
[]
[]
[null,"400. EDUCACIÓN AMBIENTAL"]
[]
[null,null,"401. EN EL PRESENTE AÑO, ESTE SERVICIO/NIVEL EDUCATIVO, ¿HA ELABORADO SU PROYECTO",null,null,null,null,null,null,null,null,null,null,null,"402. SEÑOR(A) DIRECTOR(A), SI HA ELABORADO SU PROYECTO EDUCATIVO AMBIENTAL"]
[null,null,null,"EDUCATIVO AMBIENTAL INTEGRADO (PEAI)?",null,null,null,null,null,null,null,null,null,null,null,"INTEGRADO (PEAI), MARQUE USTED, LAS PROBLEMÁTICAS/OPORTUNIDADES AMBIENTALES"]
[null,null,null,null,null,null,null,null,null,null,null,null,null,null,null,"QUE SE ABORDAN EN EL PEAI, DE ACUERDO A LO SIGUIENTE:"]
[null,null,null,"Sí",""]
[null,null,null,null,null,null,null,null,null,null,null,null,null,null,null,"Marque con una “X”, hasta dos opciones"]
[null,null,null,null,null,"¿Ha implementado su proyecto educativo ambiental integrado (PEAI):"]
[]
[null,null,null,null,null,"Sí  ","",null,"Período",null,"Año","Mes",null,null,null,"Problemáticas / Oportunidades",null,null,null,null,"Principal","Comple- mentario","No aplica"]
[null,null,null,null,null,null,null,"","Desde",null,"",""]
[null,null,null,null,null,"No  ","","","Hasta",null,"","",null,null,null,1,"Contaminación por residuos sólidos"]
[null,null,null,null,null,null,null,null,null,null,null,null,null,null,null,2,"Cambio climático"]
[null,null,null,null,null,null,null,null,null,null,null,null,null,null,null,3,"Contaminación del agua"]
[null,null,null,"No  ",null,null,"Pase a la pregunta 403.",null,null,null,null,null,null,null,null,4,"Desertificación"]
[null,null,null,null,null,null,null,null,null,null,null,null,null,null,null,5,"Depredación de flora y fauna"]
[null,null,null,null,null,null,null,null,null,null,null,null,null,null,null,6,"Microplásticos"]
[null,null,null,null,"Indique el/los motivo(s):",null,null,null,null,null,null,null,null,null,null,7,"3R: reducir, reusar, reciclar"]
[null,null,null,null,"Marque con una “X”, una o más opciones",null,null,null,null,null,null,null,null,null,null,8,"Contaminación del aire"]
[null,null,null,null,null,null,null,null,null,null,null,null,null,null,null,9,"Alimentación saludable"]
[null,null,null,null,"","Falta de conocimiento o capacitación",null,null,null,null,null,null,null,null,null,10,"Otro"]
[null,null,null,null,"","Falta de recursos"]
[null,null,null,null,"","Resistencia al cambio"]
[null,null,null,null,"","Dificultades para integrar el PEAI en el currículo"]
[null,null,null,null,"","Falta de apoyo institucional"]
[]
[]
[null,null,"403. EL SERVICIO/NIVEL EDUCATIVO, ¿CUENTA CON LA BRIGADA DE EDUCACIÓN AMBIENTAL Y",null,null,null,null,null,null,null,null,null,null,null,"405. SEÑOR(A) DIRECTOR(A), ¿LA BRIGADA DE EDUCACIÓN AMBIENTAL Y GESTIÓN DEL"]
[null,null,null,"GESTIÓN DE RIESGO DE DESASTRES?",null,null,null,null,null,null,null,null,null,null,null,"RIESGO DE DESASTRES CONFORMADA HA SIDO FORTALECIDO?"]
[]
[null,null,null,null,null,null,null,null,null,null,null,null,null,null,null,"Sí"]
[]
[null,null,null,"Sí","",null,null,null,"No  ",null," u       Pase a responsable del",null,null,null,null,null,null,null,"¿Quiénes la realizaron?"]
[null,null,null,null,null,null,null,null,null,null,null,"llenado de la cédula",null,null,null,null,null,null,"Marque con una “X”, una o más opciones"]
[]
[null,null,null,null,null,"Documento que lo aprueba",null,null,null,null,"Resolución",null,null,null,null,null,null,null,null,"El brigadista líder"]
[null,null,null,null,null,null,null,null,null,null,"Otro",null,null,null,null,null,null,null,null,"Directivo"]
[null,null,null,null,null,null,null,null,null,null,null,null,null,null,null,null,null,null,null,"Docentes"]
[null,null,null,null,null,"Número del Documento",null,null,null,"",null,null,null,null,null,null,null,null,null,"UGEL"]
[null,null,null,null,null,null,null,null,null,null,null,null,null,null,null,null,null,null,null,"DRE/GRE"]
[null,null,null,null,null,null,null,null,"Desde:",null,null,"Hasta:",null,null,null,null,null,null,null,"Gobierno local"]
[null,null,null,null,null,"Vigencia de la brigada",null,null,"DD/MM/AAAA",null,null,"DD/MM/AAAA",null,null,null,null,null,null,null,"Otro",""]
[null,null,null,null,null,null,null,null,"",null,null,""]
[null,null,null,null,null,null,null,null,null,null,null,null,null,null,"406. SEÑOR(A) DIRECTOR(A), INDIQUE USTED, ¿SI EN LOS DOS ÚLTIMOS AÑOS, LOS"]
[null,null,null,null,null,null,null,null,null,null,null,null,null,null,null,"INTEGRANTES DE LA BRIGADA DE EDUCACIÓN AMBIENTAL Y GESTIÓN DEL"]
[null,null,null,null,null,null,null,null,null,null,null,null,null,null,null,"RIESGO DE DESASTRES, HAN SIDO CAPACITADOS?"]
[]
[null,null,null,null,null,null,null,null,null,null,null,null,null,null,null,"Sí",null,null,"¿En qué temas han sido capacitados?"]
[null,null,"404. SEÑOR(A) DIRECTOR(A), LA BRIGADA DE EDUCACIÓN AMBIENTAL Y GESTIÓN DEL",null,null,null,null,null,null,null,null,null,null,null,null,null,null,null,"Marque con una “X”, una o más opciones"]
[null,null,null,"RIESGO DE DESASTRES CONFORMADA, ¿CUENTA CON UN PLAN DE ACCIÓN ELABORADO?"]
[null,null,null,null,null,null,null,null,null,null,null,null,null,null,null,null,null,null,null,"Cambio climático"]
[null,null,null,null,null,null,null,null,null,null,null,null,null,null,null,null,null,null,null,"Manejo de residuos sólidos"]
[null,null,null,"Sí",null,null,null,null,null,null,null,null,null,null,null,null,null,null,null,"Cuidado de los humedales"]
[null,null,null,null,null,null,null,null,null,null,null,null,null,null,null,null,null,null,null,"Diversidad biológica"]
[null,null,null,null,null,null,"Indique la fecha de la elaboración del plan de acción",null,null,null,null,null,null,null,null,null,null,null,null,"Primeros auxilios"]
[null,null,null,null,null,null,null,null,null,null,null,null,null,null,null,null,null,null,null,"Capacitación contra Incendios"]
[null,null,null,null,null,null,null,null,null,null,null,null,null,null,null,null,null,null,null,"Señalización y evacuación"]
[null,null,null,null,null,null,"Día","Mes","Año",null,null,null,null,null,null,null,null,null,null,"Seguridad y protección"]
[null,null,null,null,null,null,null,null,null,null,null,{"$f":"CONCATENATE(G65,\"/\",H65,\"/\",I65)","v":"//"},null,null,null,null,null,null,null,"Soporte Socioemocional y actividades lúdicas"]
[null,null,null,null,null,null,null,null,null,null,null,null,null,null,null,null,null,null,null,"Alimentación saludable"]
[null,null,null,null,null,null,null,null,null,null,null,null,null,null,null,null,null,null,null,"Transporte sostenible"]
[null,null,null,null,null,null,null,null,null,null,null,null,null,null,null,null,null,null,null,"Desertificación"]
[null,null,null,null,null,null,null,null,null,null,null,null,null,null,null,null,null,null,null,"Plásticos y microplásticos"]
[null,null,null,null,null,null,null,null,null,null,null,null,null,null,null,null,null,null,null,"Otro",""]
[null,null,null,"No  ",null,null,null,null,null,null,null,null,null,null,null,null,null,null,""]
[null,null,null,null,null,null,null,null,null,null,null,null,null,null,null,"No  ",null,null,"Indique, ¿cuál es el motivo?"]
[null,null,null,null,null,null,null,null,null,null,null,null,null,null,null,null,null,null,"Marque con una “X”, una opción"]
[null,null,null,null,"¿El plan de acción esta incorporado en el plan anual de trabajo?"]
[null,null,null,null,null,null,null,null,null,null,null,null,null,null,null,null,null,null,null,"No saben a quién solicitar apoyo para la capacitación"]
[null,null,null,null,"Sí",null,null,null,"No  ",null,null,null,null,null,null,null,null,null,null,"No cuentan con aliados especializados"]
[null,null,null,null,null,null,null,null,null,null,null,null,null,null,null,null,null,null,null,"Se suspendió por cruce de actividades"]
[null,null,null,null,null,null,null,null,null,null,null,null,null,null,null,null,null,null,null,"No se ha recibido invitación"]
[]
[]
[null,"DATOS DEL DIRECTOR(A) Y/O RESPONSABLE (S) DEL LLENADO DE LA CÉDULA"]
[]
[]
[null,null,null,null,"NOMBRES Y APELLIDOS",null,null,null,null,"CARGO",null,null,null,"CORREO ELECTRÓNICO",null,null,null,null,null,"TELÉFONO"]
[]
[]
[]
[]
[]
[]
[]
[]
[]
["DIRECTOR(A)"]
["SUB DIRECTOR(A)"]
["DOCENTE"]
["COORDINADOR(A)"]
["ASESOR"]
["ADMINISTRATIVO"]
["ASISTENTE"]
["AUXILIAR"]
["SECRETARIA(O)"]
["ESTADÍSTICO"]
["ESPECIALISTA"]
["BIBLIOTECARIO"]
["CARE"]
["COMANDANTE PNP"]
["CONTADOR"]
["DAIP"]
["DIGITADOR(A)"]
["GERENTE"]
["JEFE ACADÉMICO"]
["JEFE ADMINISTRATIVO"]
["JEFE DE AREA"]
["JEFE DE LABORATORIO"]
["JEFE DE PERSONAL"]
["JEFE DE SEDE"]
["JEFE UNIDAD"]
["OFICINISTA"]
["OPERADOR DE SISTEMAS"]
["PERSONAL DE SERVICIO"]
["PROGRAMADOR"]
["PROMOTOR(A)"]
["PSICOLOGO"]
["REGISTRADOR(A)"]
["REPRESENTANTE LEGAL"]
["SOPORTE TECNOLOGICO"]
["TÉCNICO ADMINISTRATIVO"]
["TESORERO(A)"]
["TRABAJADOR SOCIAL"]
["TUTOR"]
["OTROS"]
["DOCENTE COORDINADOR(A)"]
["PEC"]

{"sheet":"Enviar","index":5,"n_rows":9,"n_cols":4,"rows_kept":9,"cut":false,"hidden":false,"merged":[[0,1,0,4],[1,1,1,4]]}
[null,"CENSO EDUCATIVO 2025"]
[null,"MATRÍCULA, DOCENTES Y RECURSOS"]
[]
[]
[null,null,"Paso 1:","Realice el ENVÍO con su clave EOL."]
[]
[null,null,"Paso 2:","Una vez realizado el ENVÍO,  Revise su constancia de envio."]
[]
[null,null,"  ADVERTENCIA","ASEGÚRESE DE REGISTRAR TODA LA INFORMACIÓN DEL NIVEL INFORMANTE"]